bitfinex/quotes_BTCUSD_20220204
["timestamp","ask_amount","ask_price","bid_price","bid_amount"]
[1643961139121,0.33656798,37900.0,37898.0,0.07671674]
[1643961140717,0.33656798,37900.0,37898.0,0.065962]
[1643961143880,0.28656798,37900.0,37898.0,0.065962]
[1643961144482,0.28656798,37900.0,37896.0,0.45212631]
[1643961144686,0.28656798,37900.0,37896.0,0.13193622]
[1643961144687,0.43924526,37897.0,37896.0,0.13193622]
[1643961144881,0.43924526,37897.0,37895.0,0.39585135]
[1643961144882,1.146552,37896.0,37895.0,0.39585135]
[1643961145079,0.346552,37896.0,37895.0,0.39585135]
[1643961146917,0.09019717,37897.0,37895.0,0.39585135]
[1643961147124,0.04019717,37897.0,37895.0,0.39585135]
[1643961147319,0.03924526,37897.0,37895.0,0.39585135]
[1643961147519,0.03924526,37897.0,37896.0,1.19555847]
[1643961147818,0.00095191,37898.0,37896.0,3.33762618]
[1643961148016,0.00095191,37898.0,37897.0,0.82012495]
[1643961148219,0.04019717,37898.0,37897.0,0.92282495]
[1643961148517,0.03924526,37898.0,37897.0,0.50661251]
[1643961148719,0.03924526,37898.0,37897.0,0.56736725]
[1643961149120,0.03924526,37898.0,37897.0,0.55661251]
[1643961149521,0.03924526,37898.0,37897.0,0.62257151]
[1643961149921,0.03924526,37898.0,37897.0,0.71082476]
[1643961150374,0.03924526,37898.0,37897.0,0.62257151]
[1643961150575,0.03924526,37898.0,37897.0,0.35244656]
[1643961150774,0.03924526,37898.0,37897.0,0.168659]
[1643961151175,0.03924526,37898.0,37897.0,0.40719955]
[1643961151772,0.03924526,37898.0,37897.0,0.49129752]
[1643961153375,0.24732272,37900.0,37899.0,0.30558074]
[1643961153575,0.28656798,37900.0,37899.0,0.30558074]
[1643961155218,0.28656798,37900.0,37898.0,0.06596096]
[1643961155419,0.28656798,37900.0,37898.0,0.06420713]
[1643961156222,0.28656798,37900.0,37898.0,0.37129626]
[1643961157628,0.33656798,37900.0,37898.0,0.37129626]
[1643961158867,0.33656798,37900.0,37898.0,0.43726126]
[1643961160669,0.33656798,37900.0,37898.0,0.13017213]
[1643961160870,0.28656798,37900.0,37898.0,0.13017213]
[1643961161070,0.28656798,37900.0,37898.0,0.06420713]
[1643961161071,0.10343119,37899.0,37898.0,0.06420713]
[1643961165867,0.10299119,37899.0,37898.0,0.13017113]
[1643961166066,0.10255119,37899.0,37898.0,0.13017113]
[1643961167166,0.10255119,37899.0,37898.0,0.06420713]
[1643961169223,0.15255119,37899.0,37895.0,0.39585135]
[1643961169422,0.2273925,37896.0,37895.0,0.39585135]
[1643961169624,0.31663776,37896.0,37895.0,0.39585135]
[1643961171825,0.08924526,37896.0,37895.0,0.39585135]
[1643961186819,0.43579726,37896.0,37895.0,0.39585135]
[1643961187321,0.08924526,37896.0,37895.0,0.39585135]
[1643961190473,0.69690188,37896.0,37895.0,0.39585135]
[1643961190670,0.69690188,37896.0,37892.0,0.00018647]
[1643961190671,1.246552,37893.0,37892.0,0.00018647]
[1643961190873,0.23119052,37896.0,37889.0,0.0011386]
[1643961191075,0.73924526,37890.0,37889.0,0.0011386]
[1643961191276,2.30184061,37890.0,37889.0,0.0011386]
[1643961191473,2.30184061,37890.0,37889.0,0.00095213]
[1643961191474,2.12998125,37890.0,37889.0,0.00095213]
[1643961191740,2.12998125,37890.0,37885.0,0.00018647]
[1643961191741,2.04073599,37890.0,37885.0,0.00018647]
[1643961191942,0.346552,37889.0,37888.0,0.00095208]
[1643961192137,0.38579726,37889.0,37888.0,0.00095208]
[1643961192937,0.38579726,37889.0,37884.0,0.00018647]
[1643961193138,0.63318405,37890.0,37882.0,0.00018647]
[1643961193139,0.23954864,37884.0,37882.0,0.00018647]
[1643961193341,0.03924526,37883.0,37882.0,0.00018647]
[1643961193537,0.03924526,37883.0,37881.0,0.13598971]
[1643961193937,0.03924526,37883.0,37881.0,0.13580324]
[1643961194137,0.03924526,37883.0,37881.0,0.13199427]
[1643961194537,0.12981903,37883.0,37881.0,0.13199427]
[1643961194737,0.12981903,37883.0,37881.0,0.13218074]
[1643961195138,0.12981903,37883.0,37881.0,0.19817474]
[1643961195370,0.10958092,37883.0,37881.0,0.13218074]
[1643961195570,0.26385878,37882.0,37881.0,0.13218074]
[1643961195773,0.31385878,37882.0,37881.0,0.00018647]
[1643961195974,0.346552,37880.0,37877.0,0.7146401]
[1643961196172,0.01900715,37878.0,37877.0,0.7146401]
[1643961196670,0.46236786,37878.0,37877.0,0.7146401]
[1643961196870,0.85891986,37878.0,37877.0,0.7146401]
[1643961197071,0.51236786,37878.0,37877.0,0.7146401]
[1643961197270,0.85891986,37878.0,37877.0,0.7146401]
[1643961199426,0.51236786,37878.0,37877.0,0.7146401]
[1643961199627,0.85891986,37878.0,37877.0,0.7146401]
[1643961199825,0.51236786,37878.0,37877.0,0.7146401]
[1643961200126,0.85891986,37878.0,37877.0,0.7146401]
[1643961200326,0.51236786,37878.0,37877.0,0.7146401]
[1643961200525,0.85891986,37878.0,37877.0,0.7146401]
[1643961200724,0.51236786,37878.0,37877.0,0.7146401]
[1643961200925,0.85891986,37878.0,37877.0,0.7146401]
[1643961201925,1.11206495,37878.0,37877.0,0.7146401]
[1643961202125,0.85891986,37878.0,37877.0,0.7146401]
[1643961202868,0.51236786,37878.0,37877.0,0.7146401]
[1643961205071,1.12135027,37878.0,37877.0,0.7146401]
[1643961205673,0.85891986,37878.0,37877.0,0.7146401]
[1643961205873,1.10754108,37878.0,37877.0,0.7146401]
[1643961206074,0.85891986,37878.0,37877.0,0.7146401]
[1643961206272,1.10610163,37878.0,37877.0,0.7146401]
[1643961207422,0.81224963,37878.0,37877.0,0.7146401]
[1643961208622,1.15880163,37878.0,37877.0,0.7146401]
[1643961210671,0.81360575,37878.0,37877.0,0.7146401]
[1643961210874,0.56506786,37878.0,37877.0,0.7146401]
[1643961211072,1.16965057,37878.0,37877.0,0.7146401]
[1643961211875,1.16965057,37878.0,37877.0,0.71482647]
[1643961212676,0.91161986,37878.0,37877.0,0.71482647]
[1643961213076,0.56506786,37878.0,37877.0,0.71482647]
[1643961213377,1.16062836,37878.0,37877.0,0.71482647]
[1643961213676,0.91161986,37878.0,37877.0,0.71482647]
[1643961214129,1.16324341,37878.0,37877.0,0.71482647]
[1643961214322,0.76135906,37878.0,37877.0,0.71482647]
[1643961214722,0.31891076,37878.0,37877.0,0.71482647]
[1643961214922,0.66546276,37878.0,37877.0,0.71482647]
[1643961215323,0.91457268,37878.0,37877.0,0.71482647]
[1643961215924,1.18084245,37878.0,37877.0,0.7146401]
[1643961216323,0.93173253,37878.0,37877.0,0.71482647]
[1643961216524,0.66536459,37878.0,37877.0,0.71482647]
[1643961217128,0.91506748,37878.0,37877.0,0.7146401]
[1643961217325,0.66536459,37878.0,37877.0,0.7146401]
[1643961217525,0.9238119,37878.0,37877.0,0.71482647]
[1643961217974,0.90923884,37878.0,37877.0,0.71482647]
[1643961218275,0.66536459,37878.0,37877.0,0.71482647]
[1643961219275,0.90517138,37878.0,37877.0,0.71482647]
[1643961219475,0.55861938,37878.0,37877.0,0.71482647]
[1643961219678,0.90517138,37878.0,37877.0,0.71482647]
[1643961220477,1.15442094,37878.0,37877.0,0.71482647]
[1643961220677,1.15442094,37878.0,37877.0,0.10962543]
[1643961220876,1.15442094,37878.0,37877.0,0.10943906]
[1643961221077,1.50398035,37878.0,37877.0,0.10943906]
[1643961221277,1.60398035,37878.0,37877.0,0.10962543]
[1643961221482,1.15442094,37878.0,37877.0,0.10962543]
[1643961221923,1.15442094,37878.0,37877.0,0.10943906]
[1643961222324,0.90517138,37878.0,37877.0,0.10962543]
[1643961222522,1.52334487,37878.0,37877.0,0.10962543]
[1643961222924,1.26733019,37878.0,37877.0,0.10962543]
[1643961223124,1.52044011,37878.0,37877.0,0.10943906]
[1643961223325,1.26733019,37878.0,37877.0,0.10943906]
[1643961223525,1.31733019,37878.0,37877.0,0.10962543]
[1643961223727,1.41733019,37878.0,37877.0,0.10962543]
[1643961223925,1.00517138,37878.0,37877.0,0.10962543]
[1643961224127,1.27107846,37878.0,37877.0,0.10962543]
[1643961224325,1.27107846,37878.0,37877.0,0.10943906]
[1643961224526,1.00517138,37878.0,37877.0,0.10943906]
[1643961224830,1.00517138,37878.0,37877.0,0.10962543]
[1643961225574,1.00517138,37878.0,37877.0,0.10943906]
[1643961225975,1.00517138,37878.0,37877.0,0.10962543]
[1643961226375,0.90517138,37878.0,37877.0,0.10962543]
[1643961226977,1.15594504,37878.0,37877.0,0.10962543]
[1643961230322,1.25594504,37878.0,37877.0,0.10962543]
[1643961231525,1.25594504,37878.0,37877.0,0.10943906]
[1643961231723,1.25594504,37878.0,37877.0,0.10962543]
[1643961232871,1.25594504,37878.0,37877.0,0.10943906]
[1643961233072,1.25594504,37878.0,37877.0,0.10962543]
[1643961233672,1.75594504,37878.0,37877.0,0.10962543]
[1643961234072,1.75594504,37878.0,37877.0,0.10943906]
[1643961234276,1.75594504,37878.0,37877.0,0.10962543]
[1643961235179,1.75594504,37878.0,37877.0,0.10943906]
[1643961235377,1.75594504,37878.0,37877.0,0.10962543]
[1643961236379,1.50517138,37878.0,37877.0,0.10943906]
[1643961236628,1.50517138,37878.0,37877.0,0.10962543]
[1643961237224,1.50517138,37878.0,37877.0,0.00962543]
[1643961237225,0.41546098,37878.0,37877.0,0.00962543]
[1643961238125,0.01900715,37878.0,37877.0,0.00962543]
[1643961238327,0.27789706,37878.0,37877.0,0.00962543]
[1643961238523,0.67444906,37878.0,37877.0,0.00962543]
[1643961240579,0.41555915,37878.0,37877.0,0.00962543]
[1643961241677,0.63124614,37878.0,37877.0,0.00962543]
[1643961244627,0.41555915,37878.0,37877.0,0.00962543]
[1643961245824,0.06900715,37878.0,37877.0,0.00962543]
[1643961246525,0.41555915,37878.0,37877.0,0.00962543]
[1643961247125,0.65548862,37878.0,37877.0,0.00962543]
[1643961247526,0.41555915,37878.0,37877.0,0.00962543]
[1643961247727,0.66206385,37878.0,37877.0,0.00962543]
[1643961247977,0.65388695,37878.0,37877.0,0.00962543]
[1643961248180,0.65625197,37878.0,37877.0,0.00962543]
[1643961248776,0.41555915,37878.0,37877.0,0.00962543]
[1643961249176,0.65827274,37878.0,37877.0,0.00962543]
[1643961249379,0.346552,37878.0,37877.0,0.04061828]
[1643961249678,0.066014,37881.0,37877.0,0.04061828]
[1643961249876,0.066014,37881.0,37879.0,0.03099285]
[1643961250078,0.01900715,37880.0,37879.0,0.03099285]
[1643961250478,0.20521201,37880.0,37879.0,0.03117922]
[1643961250682,0.25521201,37880.0,37877.0,1.79471738]
[1643961250876,0.25521201,37880.0,37878.0,0.00095067]
[1643961251077,0.05,37879.0,37878.0,0.00095067]
[1643961251922,0.05,37879.0,37877.0,0.00095068]
[1643961251923,0.396552,37879.0,37877.0,0.00095068]
[1643961252324,0.346552,37879.0,37877.0,0.00095068]
[1643961252523,0.25521201,37880.0,37877.0,0.00095068]
[1643961253526,0.5,37878.0,37877.0,0.00095068]
[1643961253725,0.05,37878.0,37877.0,0.00095068]
[1643961254122,0.05,37878.0,37876.0,0.26401001]
[1643961254624,0.05,37878.0,37876.0,0.2649607]
[1643961255023,0.04931119,37878.0,37876.0,0.2649607]
[1643961255224,0.04931119,37877.0,37876.0,0.2649607]
[1643961255477,0.04931119,37877.0,37876.0,0.26401001]
[1643961255677,0.04931119,37877.0,37876.0,0.26394602]
[1643961255882,0.39586319,37877.0,37876.0,0.26394602]
[1643961257380,0.04931119,37877.0,37876.0,0.26394602]
[1643961257978,0.39586319,37877.0,37876.0,0.26394602]
[1643961258179,0.04931119,37877.0,37876.0,0.26394602]
[1643961259427,0.39586319,37877.0,37876.0,0.26394602]
[1643961259724,0.04931119,37877.0,37876.0,0.26394602]
[1643961260525,0.39586319,37877.0,37876.0,0.26394602]
[1643961260726,0.04931119,37877.0,37876.0,0.26394602]
[1643961260928,0.39586319,37877.0,37876.0,0.26394602]
[1643961261128,0.04931119,37877.0,37876.0,0.26394602]
[1643961261725,0.05,37878.0,37876.0,0.26394602]
[1643961261929,0.3453698,37881.0,37877.0,0.00068881]
[1643961262326,0.04931119,37878.0,37877.0,0.00068881]
[1643961262976,0.09631084,37878.0,37877.0,0.00068881]
[1643961263177,0.14562203,37878.0,37877.0,0.00068881]
[1643961263482,0.19562203,37878.0,37877.0,0.00068881]
[1643961264576,0.14631084,37878.0,37877.0,0.00068881]
[1643961264775,0.05,37878.0,37877.0,0.00068881]
[1643961265775,0.52937003,37878.0,37877.0,0.00068881]
[1643961265975,0.17937003,37878.0,37877.0,0.0008742]
[1643961266630,0.0861599,37878.0,37877.0,0.00018539]
[1643961266829,0.0861599,37878.0,37876.0,0.2650821]
[1643961267028,0.0861599,37878.0,37876.0,0.3150821]
[1643961267427,0.3453698,37881.0,37876.0,0.31413141]
[1643961267629,0.3453698,37881.0,37879.0,0.05]
[1643961268230,0.63347522,37881.0,37879.0,0.05]
[1643961268932,0.63347522,37881.0,37878.0,0.00095066]
[1643961269333,0.63347522,37881.0,37878.0,0.00113605]
[1643961269533,0.0860772,37880.0,37878.0,0.00113605]
[1643961269933,0.346552,37879.0,37878.0,0.05]
[1643961270376,0.346552,37879.0,37878.0,0.00018539]
[1643961270577,0.346552,37879.0,37877.0,0.05113607]
[1643961270578,0.05,37878.0,37877.0,0.05113607]
[1643961270778,0.1360772,37880.0,37877.0,0.05743041]
[1643961270979,0.05,37880.0,37879.0,0.05]
[1643961271384,0.1,37882.0,37879.0,0.05]
[1643961271580,0.1,37882.0,37881.0,0.05]
[1643961271883,0.446552,37882.0,37881.0,0.05]
[1643961272279,0.446552,37882.0,37881.0,0.1]
[1643961273985,0.446552,37882.0,37881.0,0.05]
[1643961276230,0.446552,37882.0,37881.0,0.1]
[1643961278679,0.446552,37882.0,37881.0,0.05]
[1643961278680,0.05,37882.0,37881.0,0.05]
[1643961278879,0.00095041,37889.0,37883.0,0.00646371]
[1643961278880,0.05,37886.0,37883.0,0.00646371]
[1643961279081,0.05,37886.0,37885.0,0.05787588]
[1643961279282,0.05,37890.0,37886.0,0.00711579]
[1643961279479,0.05,37890.0,37889.0,0.05712294]
[1643961279679,0.01829474,37893.0,37889.0,0.05514271]
[1643961279879,0.41484674,37893.0,37892.0,0.05]
[1643961280082,0.06829474,37893.0,37892.0,0.05739316]
[1643961280281,0.01898847,37894.0,37892.0,0.05739316]
[1643961280681,0.55,37893.0,37888.0,0.20716361]
[1643961280886,0.2250817,37894.0,37889.0,0.327601]
[1643961281083,0.01829474,37893.0,37889.0,0.00624623]
[1643961281282,0.01829474,37893.0,37889.0,0.00545193]
[1643961281482,0.36485174,37893.0,37892.0,0.05]
[1643961281727,0.16323273,37893.0,37892.0,0.0563081]
[1643961282426,0.16323273,37893.0,37892.0,0.05]
[1643961282427,0.01829474,37893.0,37892.0,0.05]
[1643961282625,0.36485174,37893.0,37892.0,0.1]
[1643961282827,0.01829474,37893.0,37892.0,0.1]
[1643961283426,0.01829474,37893.0,37892.0,0.05]
[1643961284826,0.69535807,37894.0,37892.0,0.05]
[1643961285474,0.69437316,37894.0,37892.0,0.05]
[1643961285874,0.54890604,37894.0,37892.0,0.05]
[1643961286876,0.17083155,37893.0,37892.0,0.05]
[1643961287475,0.54890604,37894.0,37892.0,0.05]
[1643961288477,0.70844592,37894.0,37892.0,0.05]
[1643961292454,0.54890604,37894.0,37892.0,0.05]
[1643961294678,0.54890604,37894.0,37893.0,0.28676725]
[1643961296727,0.54890604,37894.0,37892.0,0.05]
[1643961296928,0.79511464,37894.0,37892.0,0.05]
[1643961297735,0.54890604,37894.0,37892.0,0.05]
[1643961301075,0.54890604,37894.0,37892.0,0.0498837]
[1643961302981,0.20059643,37893.0,37892.0,0.0498837]
[1643961303377,0.54890604,37894.0,37892.0,0.0498837]
[1643961303578,0.54985473,37894.0,37892.0,0.0498837]
[1643961303977,0.54985473,37894.0,37892.0,0.05752746]
[1643961304230,0.54985473,37894.0,37892.0,0.0498837]
[1643961304430,0.20329773,37894.0,37892.0,0.0498837]
[1643961304631,0.20234904,37894.0,37892.0,0.05686647]
[1643961305431,0.346557,37893.0,37892.0,0.14924184]
[1643961305635,0.20234904,37894.0,37892.0,0.14225907]
[1643961306034,0.54985716,37894.0,37892.0,0.09237537]
[1643961306235,0.54985716,37894.0,37892.0,0.09897566]
[1643961306434,0.48387416,37894.0,37893.0,0.00589507]
[1643961307036,0.13636604,37894.0,37893.0,0.00589507]
[1643961307434,0.13636604,37894.0,37893.0,0.33345607]
[1643961307873,0.13636604,37894.0,37893.0,0.00589507]
[1643961308074,0.13636604,37894.0,37893.0,0.00733288]
[1643961308277,0.13636604,37894.0,37892.0,0.14237537]
[1643961308476,0.13636604,37894.0,37893.0,0.00537928]
[1643961308677,0.48292304,37894.0,37892.0,0.14237537]
[1643961308877,0.13636604,37894.0,37893.0,0.00571366]
[1643961309078,0.48292304,37894.0,37892.0,0.14237537]
[1643961309279,0.48292304,37894.0,37892.0,0.1475738]
[1643961310278,0.13636604,37894.0,37892.0,0.1475738]
[1643961310678,0.4,37893.0,37890.0,0.14152075]
[1643961310881,0.05,37892.0,37890.0,0.14152075]
[1643961311079,0.05,37892.0,37891.0,0.00700886]
[1643961311280,0.05,37892.0,37890.0,0.14930741]
[1643961311480,0.05,37892.0,37891.0,0.00554998]
[1643961311730,0.05,37892.0,37890.0,0.21437094]
[1643961312031,0.05,37892.0,37891.0,0.00758427]
[1643961312231,0.05,37892.0,37890.0,0.26282359]
[1643961312430,0.00095097,37893.0,37891.0,0.00716101]
[1643961312631,0.00095097,37893.0,37892.0,0.00778004]
[1643961312833,0.00095097,37893.0,37890.0,0.25749975]
[1643961313033,0.346557,37892.0,37891.0,0.00722911]
[1643961313231,0.18731701,37894.0,37892.0,0.00512857]
[1643961313537,0.53387401,37894.0,37890.0,0.19152075]
[1643961313731,0.53387401,37894.0,37891.0,0.00608415]
[1643961313933,0.53387401,37894.0,37892.0,0.00591353]
[1643961314131,0.53387401,37894.0,37893.0,0.0062757]
[1643961314335,0.53292304,37894.0,37891.0,0.06597987]
[1643961314532,0.53292304,37894.0,37892.0,0.00552654]
[1643961314732,0.53292304,37894.0,37893.0,0.00583333]
[1643961314933,0.53292304,37894.0,37892.0,0.05]
[1643961315132,0.53292304,37894.0,37893.0,0.00613435]
[1643961315377,0.53292304,37894.0,37892.0,0.05]
[1643961316378,0.05,37893.0,37892.0,0.05]
[1643961316577,0.396557,37893.0,37892.0,0.05]
[1643961316778,0.05,37893.0,37892.0,0.05]
[1643961317977,0.13636604,37894.0,37892.0,0.05]
[1643961318178,0.18731701,37894.0,37892.0,0.05]
[1643961318783,0.53387401,37894.0,37892.0,0.05]
[1643961318979,0.53292304,37894.0,37892.0,0.05]
[1643961319228,0.53240366,37894.0,37892.0,0.05]
[1643961320431,0.53140366,37894.0,37892.0,0.05]
[1643961321233,0.53140366,37894.0,37891.0,0.06597987]
[1643961322985,0.05,37892.0,37891.0,0.06597987]
[1643961323989,0.23523233,37892.0,37891.0,0.06597987]
[1643961325587,0.58178933,37892.0,37891.0,0.06597987]
[1643961325787,0.23523233,37892.0,37891.0,0.06597987]
[1643961326829,0.58178933,37892.0,37891.0,0.06597987]
[1643961328028,0.23523233,37892.0,37891.0,0.06597987]
[1643961328229,0.05,37892.0,37891.0,0.06597987]
[1643961328429,0.396557,37892.0,37891.0,0.06597987]
[1643961328729,0.05,37892.0,37891.0,0.06597987]
[1643961331885,0.05,37892.0,37891.0,0.94174468]
[1643961334230,0.00095098,37893.0,37891.0,1.26932668]
[1643961334432,0.00095098,37893.0,37891.0,0.94174468]
[1643961334631,0.41144774,37894.0,37892.0,0.327572]
[1643961334829,0.18731701,37894.0,37892.0,0.05]
[1643961335029,0.18731701,37894.0,37893.0,0.327561]
[1643961335230,0.18731701,37894.0,37892.0,0.05]
[1643961335629,0.18731701,37894.0,37893.0,0.00541133]
[1643961335831,0.18636604,37894.0,37892.0,0.05]
[1643961336029,0.18636604,37894.0,37893.0,0.00565166]
[1643961336231,0.18636604,37894.0,37892.0,0.05]
[1643961336430,0.18636604,37894.0,37893.0,0.00777693]
[1643961336630,0.18636604,37894.0,37892.0,0.05]
[1643961336830,0.53292304,37894.0,37893.0,0.00540222]
[1643961337034,0.18636604,37894.0,37892.0,0.31859676]
[1643961337231,0.18636604,37894.0,37893.0,0.00786917]
[1643961337432,0.18636604,37894.0,37892.0,0.31859676]
[1643961337632,0.18636604,37894.0,37893.0,0.00653532]
[1643961337875,0.18636604,37894.0,37892.0,0.31859676]
[1643961338076,0.1,37894.0,37892.0,0.31859676]
[1643961338476,0.1,37894.0,37893.0,0.327561]
[1643961339079,0.05,37894.0,37893.0,0.327561]
[1643961339480,0.07570488,37895.0,37892.0,0.31859676]
[1643961339683,0.396557,37894.0,37892.0,0.31859676]
[1643961339880,0.05,37894.0,37892.0,0.31859676]
[1643961340780,0.05,37894.0,37892.0,0.05]
[1643961340979,0.396557,37894.0,37891.0,0.65521448]
[1643961341182,0.54873752,37892.0,37891.0,0.65521448]
[1643961341380,0.20218052,37892.0,37891.0,0.72119435]
[1643961342231,0.20218052,37892.0,37891.0,0.77119435]
[1643961342830,0.05,37892.0,37891.0,0.77119435]
[1643961343130,0.05,37892.0,37891.0,1.09877535]
[1643961343529,0.05,37892.0,37891.0,1.09877635]
[1643961343729,0.05,37892.0,37891.0,1.09877535]
[1643961343928,0.05,37892.0,37891.0,0.77119435]
[1643961344128,0.00095098,37893.0,37891.0,0.77119435]
[1643961344330,0.15876268,37895.0,37891.0,0.77119435]
[1643961344530,0.00095098,37893.0,37891.0,0.77119435]
[1643961344933,0.09202916,37893.0,37891.0,0.77119435]
[1643961345129,0.00095098,37893.0,37891.0,0.77119435]
[1643961345384,0.05,37893.0,37891.0,0.77119435]
[1643961345583,0.00095097,37894.0,37891.0,0.77119435]
[1643961345785,0.00095097,37894.0,37892.0,0.0329894]
[1643961345985,0.05,37893.0,37892.0,0.0329894]
[1643961346186,0.05,37893.0,37891.0,0.77119435]
[1643961346385,0.05,37893.0,37891.0,0.84926921]
[1643961346586,0.25349847,37895.0,37891.0,0.84926921]
[1643961346787,0.34750797,37894.0,37892.0,0.03298978]
[1643961347087,0.39750797,37894.0,37892.0,0.03298978]
[1643961347488,0.05095097,37894.0,37892.0,0.03298978]
[1643961347885,0.05,37894.0,37892.0,0.03298978]
[1643961348386,0.05,37894.0,37893.0,0.00528624]
[1643961348587,0.22083578,37901.0,37894.0,0.0062165]
[1643961348790,0.01,37903.0,37900.0,0.05]
[1643961348987,0.02106851,37898.0,37897.0,0.34738842]
[1643961349232,0.02106851,37898.0,37897.0,0.45404569]
[1643961349433,0.02106851,37898.0,37897.0,0.81706396]
[1643961349634,0.01,37903.0,37900.0,0.197908]
[1643961349635,0.10400688,37902.0,37900.0,0.197908]
[1643961349832,0.10435923,37902.0,37901.0,0.377479]
[1643961350036,0.10435923,37902.0,37901.0,0.427479]
[1643961350330,0.10400688,37902.0,37901.0,0.427479]
[1643961350531,0.10400688,37902.0,37901.0,0.377479]
[1643961352031,0.06682268,37903.0,37901.0,0.377479]
[1643961352231,0.06647033,37903.0,37901.0,0.115974]
[1643961352432,0.06682268,37903.0,37901.0,0.115974]
[1643961352635,0.06632071,37903.0,37901.0,0.115974]
[1643961353117,0.35854304,37903.0,37901.0,0.115974]
[1643961353820,0.35854304,37903.0,37902.0,0.327468]
[1643961354018,0.35819069,37903.0,37902.0,0.327468]
[1643961354820,0.06596836,37903.0,37902.0,0.327468]
[1643961357231,0.06596836,37903.0,37902.0,0.32664353]
[1643961357431,0.06596836,37903.0,37902.0,0.37664353]
[1643961357934,0.06596836,37903.0,37902.0,0.32664353]
[1643961358534,0.06596836,37903.0,37902.0,0.37664353]
[1643961359833,0.06596836,37903.0,37902.0,0.32664353]
[1643961360485,0.06596836,37903.0,37902.0,0.37664353]
[1643961360681,0.06596836,37903.0,37902.0,0.32664353]
[1643961360880,0.06596836,37903.0,37902.0,0.37664353]
[1643961361080,0.06596836,37903.0,37902.0,0.32664353]
[1643961361481,0.06596836,37903.0,37902.0,0.37664353]
[1643961363280,0.05596836,37903.0,37902.0,0.37664353]
[1643961363682,0.05596836,37903.0,37902.0,0.376647]
[1643961365931,0.05596836,37903.0,37902.0,0.326647]
[1643961366133,0.05596836,37903.0,37902.0,0.376647]
[1643961366332,0.05596836,37903.0,37902.0,0.326647]
[1643961366832,0.070867,37912.0,37902.0,0.326647]
[1643961366833,3.04133,37916.0,37904.0,1.4]
[1643961367038,0.28212359,37916.0,37908.0,0.3]
[1643961367236,0.00035233,37915.0,37909.0,0.83289862]
[1643961367436,0.39389298,37927.0,37909.0,0.83289862]
[1643961367437,0.00035233,37917.0,37914.0,0.05]
[1643961367635,0.10145566,37919.0,37917.0,0.326493]
[1643961367889,0.10145566,37919.0,37918.0,0.05]
[1643961367890,0.00035296,37919.0,37918.0,0.05]
[1643961368092,0.00035296,37919.0,37917.0,0.524289]
[1643961368295,0.25947168,37925.0,37918.0,0.376483]
[1643961368489,0.00035296,37924.0,37918.0,0.05]
[1643961368688,0.25947168,37925.0,37918.0,0.05]
[1643961368987,0.09796956,37924.0,37918.0,0.05]
[1643961369188,0.27519675,37919.0,37918.0,0.05]
[1643961369389,0.27519675,37919.0,37918.0,0.326478]
[1643961369589,0.56763409,37919.0,37917.0,0.458358]
[1643961369789,0.23328692,37918.0,37917.0,0.458358]
[1643961369988,0.27554971,37919.0,37917.0,0.458358]
[1643961370391,0.27519675,37919.0,37917.0,0.131866]
[1643961370592,0.00035296,37920.0,37918.0,0.326483]
[1643961370796,0.00035296,37920.0,37916.0,0.21813749]
[1643961370797,0.00101933,37920.0,37916.0,0.21813749]
[1643961370995,0.00137229,37920.0,37916.0,0.26813749]
[1643961371191,0.00101933,37920.0,37916.0,0.10132583]
[1643961371393,0.00101933,37920.0,37916.0,0.05132583]
[1643961371638,0.00137229,37920.0,37916.0,0.05132583]
[1643961371834,0.00035296,37922.0,37916.0,0.05132583]
[1643961372035,0.09540646,37921.0,37917.0,0.131866]
[1643961372234,0.05,37919.0,37917.0,0.131866]
[1643961372634,0.00035296,37920.0,37917.0,0.131866]
[1643961372834,0.43888068,37921.0,37917.0,0.131866]
[1643961373033,0.00035296,37920.0,37917.0,0.131866]
[1643961373233,0.63947079,37921.0,37917.0,0.131866]
[1643961373438,0.00035296,37920.0,37917.0,0.131866]
[1643961373634,0.63982375,37921.0,37917.0,0.131866]
[1643961373836,0.00035296,37920.0,37917.0,0.131866]
[1643961374035,0.87808795,37921.0,37917.0,0.131866]
[1643961374238,0.00035296,37920.0,37917.0,0.131866]
[1643961374435,0.87592717,37921.0,37917.0,0.131866]
[1643961374635,0.87653924,37921.0,37917.0,0.131866]
[1643961374836,0.23653065,37920.0,37917.0,0.131866]
[1643961375036,0.23688361,37920.0,37917.0,0.131866]
[1643961375488,0.41244874,37919.0,37917.0,0.131866]
[1643961375686,0.25787788,37918.0,37913.0,0.00101984]
[1643961375888,0.61648311,37917.0,37913.0,0.00101984]
[1643961376093,0.66683607,37917.0,37913.0,0.00101984]
[1643961376285,0.76683607,37917.0,37913.0,0.00101984]
[1643961376486,0.0527,37916.0,37913.0,0.00101984]
[1643961376687,0.59933651,37915.0,37908.0,0.01840479]
[1643961376888,1.86516698,37914.0,37913.0,0.0010198]
[1643961377087,1.849202,37914.0,37913.0,0.0010198]
[1643961377487,0.449202,37914.0,37913.0,0.0010198]
[1643961377687,0.62314868,37914.0,37913.0,0.0010198]
[1643961377889,0.346502,37911.0,37909.0,0.131912]
[1643961378088,0.396502,37911.0,37909.0,0.131912]
[1643961378692,0.39685496,37911.0,37910.0,0.10429184]
[1643961378889,0.396502,37911.0,37910.0,0.10429184]
[1643961379632,0.05,37911.0,37910.0,0.10429184]
[1643961379831,0.346502,37911.0,37910.0,0.10429184]
[1643961380031,0.399202,37911.0,37910.0,0.10429184]
[1643961380231,0.1027,37911.0,37910.0,0.10429184]
[1643961380632,0.0527,37911.0,37910.0,0.10429184]
[1643961381033,0.399202,37911.0,37910.0,0.10429184]
[1643961381234,0.449202,37911.0,37910.0,0.10429184]
[1643961382882,0.1027,37911.0,37910.0,0.10429184]
[1643961383083,0.0527,37911.0,37910.0,0.10429184]
[1643961383788,0.00035296,37912.0,37910.0,0.40382019]
[1643961383986,1.16068644,37923.0,37910.0,0.40382019]
[1643961383987,0.00035296,37914.0,37910.0,0.40382019]
[1643961384184,0.00101964,37917.0,37913.0,0.05]
[1643961384385,0.00035302,37916.0,37913.0,0.05]
[1643961384583,0.00101964,37917.0,37913.0,0.05]
[1643961384783,0.00035302,37916.0,37914.0,1.91628723]
[1643961384983,0.00035302,37918.0,37914.0,1.91628723]
[1643961385187,0.28033583,37922.0,37915.0,0.07915074]
[1643961385188,0.00035302,37916.0,37915.0,0.07915074]
[1643961385387,0.0010197,37917.0,37914.0,1.98223023]
[1643961385587,0.00035302,37916.0,37914.0,1.98223023]
[1643961386288,0.00035302,37919.0,37914.0,1.98223023]
[1643961386485,0.00035302,37916.0,37915.0,0.16348124]
[1643961386733,0.0010197,37917.0,37914.0,1.98223023]
[1643961386932,0.00035302,37916.0,37914.0,1.98223023]